[Event "*** Titled Tuesday 3|2 Blitz"]
[Site "Chess.com"]
[Date "2014.12.30"]
[Round "1"]
[White "AungTZ"]
[Black "DanielRensch"]
[Result "0-1"]
[WhiteElo "2009"]
[BlackElo "2346"]
[TimeControl "180+2"]
[EndTime "11:07:44 PST"]
[Termination "DanielRensch won by resignation"]

1. e4 {[%clk 0:02:59.7]} 1... c5 {[%clk 0:02:50.1]} 2. Nf3 {[%clk 0:03:00]} 2...
d6 {[%clk 0:02:47.5]} 3. d4 {[%clk 0:02:59.5]} 3... cxd4 {[%clk 0:02:46.4]} 4.
Nxd4 {[%clk 0:03:01]} 4... Nf6 {[%clk 0:02:38.8]} 5. Nc3 {[%clk 0:03:01.6]} 5...
g6 {[%clk 0:02:24.8]} 6. Be2 {[%clk 0:02:58.8]} 6... Bg7 {[%clk 0:02:22.8]} 7.
Be3 {[%clk 0:02:59]} 7... O-O {[%clk 0:02:16.5]} 8. Nb3 {[%clk 0:02:59.8]} 8...
Nc6 {[%clk 0:02:12.5]} 9. O-O {[%clk 0:02:58]} 9... Be6 {[%clk 0:02:04.6]} 10.
f4 {[%clk 0:02:52.3]} 10... Rc8 {[%clk 0:02:01.2]} 11. f5 {[%clk 0:02:41.8]}
11... Bd7 {[%clk 0:02:00]} 12. Qd2 {[%clk 0:02:37.5]} 12... Ne5 {[%clk
0:01:40.6]} 13. Bh6 {[%clk 0:02:29.4]} 13... a5 {[%clk 0:01:29.9]} 14. a4 {[%clk
0:02:26.2]} 14... Rxc3 {[%clk 0:01:27.6]} 15. Bxg7 {[%clk 0:02:20]} 15... Kxg7
{[%clk 0:01:27.8]} 16. Qxc3 {[%clk 0:02:11.6]} 16... Nxe4 {[%clk 0:01:27.8]} 17.
Qe3 {[%clk 0:02:12.1]} 17... Nf6 {[%clk 0:01:25.8]} 18. fxg6 {[%clk 0:02:07.9]}
18... hxg6 {[%clk 0:01:25.2]} 19. h3 {[%clk 0:02:08.1]} 19... Qc7 {[%clk
0:01:11.2]} 20. Nd4 {[%clk 0:02:01.2]} 20... Qc5 {[%clk 0:01:01.7]} 21. c3
{[%clk 0:01:57]} 21... b6 {[%clk 0:00:52.3]} 22. Kh1 {[%clk 0:01:54]} 22... Rh8
{[%clk 0:00:52]} 23. Qg3 {[%clk 0:01:48.6]} 23... Kf8 {[%clk 0:00:40.2]} 24. Bb5
{[%clk 0:01:18.4]} 24... Bc8 {[%clk 0:00:30.8]} 25. Nf3 {[%clk 0:01:15.2]} 25...
Nxf3 {[%clk 0:00:25.3]} 26. Rxf3 {[%clk 0:01:12.1]} 26... Bb7 {[%clk 0:00:25.3]}
27. Rff1 {[%clk 0:01:01.7]} 27... Kg7 {[%clk 0:00:26.1]} 28. Be2 {[%clk
0:00:57.8]} 28... Ne4 {[%clk 0:00:24.4]} 29. Qf3 {[%clk 0:00:50.3]} 29... f5
{[%clk 0:00:20.6]} 30. Rad1 {[%clk 0:00:47]} 30... Qe5 {[%clk 0:00:18.6]} 31.
Kg1 {[%clk 0:00:44.8]} 31... Qc5+ {[%clk 0:00:18.5]} 32. Kh1 {[%clk 0:00:45.4]}
32... Qe5 {[%clk 0:00:19.5]} 33. Bd3 {[%clk 0:00:36.6]} 33... Ng3+ {[%clk
0:00:19.6]} 34. Qxg3 {[%clk 0:00:35.9]} 34... Qxg3 {[%clk 0:00:21.5]} 35. Rfe1
{[%clk 0:00:36.9]} 35... Rxh3+ {[%clk 0:00:21.6]} 0-1

[Event "*** Titled Tuesday 3|2 Blitz"]
[Site "Chess.com"]
[Date "2014.12.30"]
[Round "1"]
[White "vinceyoung15"]
[Black "Kacparov"]
[Result "0-1"]
[WhiteElo "1969"]
[BlackElo "2303"]
[TimeControl "180+2"]
[EndTime "11:07:56 PST"]
[Termination "Kacparov won by resignation"]

1. e4 {[%clk 0:02:52.6]} 1... c5 {[%clk 0:02:59]} 2. c3 {[%clk 0:02:53]} 2... d6
{[%clk 0:02:59.9]} 3. d4 {[%clk 0:02:53.5]} 3... Nf6 {[%clk 0:03:01.5]} 4. Bd3
{[%clk 0:02:48]} 4... Nc6 {[%clk 0:03:02.5]} 5. Nf3 {[%clk 0:02:48.3]} 5... e5
{[%clk 0:03:02.5]} 6. d5 {[%clk 0:02:35.5]} 6... Ne7 {[%clk 0:03:02.5]} 7. c4
{[%clk 0:02:25.2]} 7... Ng6 {[%clk 0:03:02.3]} 8. Nc3 {[%clk 0:02:25.9]} 8...
Be7 {[%clk 0:03:03.2]} 9. Ne2 {[%clk 0:02:25.6]} 9... Nh5 {[%clk 0:03:02]} 10.
Ng3 {[%clk 0:02:24.4]} 10... Nhf4 {[%clk 0:03:02.2]} 11. Bxf4 {[%clk 0:02:21.5]}
11... exf4 {[%clk 0:03:00.3]} 12. Nf5 {[%clk 0:02:20.4]} 12... O-O {[%clk
0:03:00.2]} 13. Nxe7+ {[%clk 0:02:20.5]} 13... Qxe7 {[%clk 0:02:59.8]} 14. O-O
{[%clk 0:02:20.4]} 14... Bg4 {[%clk 0:03:00.8]} 15. h3 {[%clk 0:02:19.2]} 15...
Bxf3 {[%clk 0:03:01.8]} 16. Qxf3 {[%clk 0:02:18.5]} 16... Ne5 {[%clk 0:03:03.3]}
17. Qe2 {[%clk 0:02:19.4]} 17... f3 {[%clk 0:03:03.9]} 18. gxf3 {[%clk
0:02:19.2]} 18... Qf6 {[%clk 0:02:59.2]} 19. Qe3 {[%clk 0:01:52.6]} 19... Ng6
{[%clk 0:02:55.6]} 20. e5 {[%clk 0:01:31.9]} 20... Nxe5 {[%clk 0:02:55.7]} 21.
Kg2 {[%clk 0:01:20.4]} 21... Rae8 {[%clk 0:02:55.1]} 22. Rae1 {[%clk 0:01:10.8]}
22... h5 {[%clk 0:02:32.6]} 23. b3 {[%clk 0:01:02.1]} 23... h4 {[%clk
0:02:09.5]} 24. Bc2 {[%clk 0:01:01.3]} 24... Re7 {[%clk 0:01:51.9]} 25. Qc3
{[%clk 0:00:39.4]} 25... Rfe8 {[%clk 0:01:47.3]} 26. Re4 {[%clk 0:00:35]} 26...
Nd7 {[%clk 0:01:29]} 27. Qe3 {[%clk 0:00:31.1]} 27... Rxe4 {[%clk 0:01:27]} 28.
fxe4 {[%clk 0:00:32.4]} 28... Qg6+ {[%clk 0:01:21.7]} 29. Kh2 {[%clk 0:00:32.6]}
29... Nf6 {[%clk 0:01:16.3]} 30. Rg1 {[%clk 0:00:28.8]} 30... Qh5 {[%clk
0:01:16.7]} 31. f4 {[%clk 0:00:29]} 31... Qh6 {[%clk 0:01:13.5]} 32. Qf3 {[%clk
0:00:23.6]} 32... Nh5 {[%clk 0:01:12.8]} 33. Rg5 {[%clk 0:00:22.5]} 33... Ng3
{[%clk 0:01:06.7]} 34. Rxg3 {[%clk 0:00:17.1]} 34... hxg3+ {[%clk 0:01:06.3]}
35. Qxg3 {[%clk 0:00:19]} 35... Qf6 {[%clk 0:01:06.4]} 36. e5 {[%clk 0:00:15.8]}
36... dxe5 {[%clk 0:01:06.9]} 37. Qd3 {[%clk 0:00:15.3]} 37... e4 {[%clk
0:01:07.7]} 38. Qe3 {[%clk 0:00:15.8]} 38... Qb2 {[%clk 0:01:08.1]} 39. Qe2
{[%clk 0:00:15.1]} 39... Qd4 {[%clk 0:01:07.8]} 40. Kg3 {[%clk 0:00:14.9]} 40...
e3 {[%clk 0:01:06.8]} 41. Qh5 {[%clk 0:00:11.1]} 41... g6 {[%clk 0:01:07.3]} 42.
Bxg6 {[%clk 0:00:11]} 42... Qg7 {[%clk 0:01:08.1]} 43. f5 {[%clk 0:00:10.2]}
43... e2 {[%clk 0:01:07.5]} 0-1

[Event "*** Titled Tuesday 3|2 Blitz"]
[Site "Chess.com"]
[Date "2014.12.30"]
[Round "1"]
[White "LADIESGET2KNOWME"]
[Black "exoticprincess"]
[Result "1-0"]
[WhiteElo "2221"]
[BlackElo "2592"]
[TimeControl "180+2"]
[EndTime "11:08:28 PST"]
[Termination "LADIESGET2KNOWME won by resignation"]

1. d4 {[%clk 0:01:25.9]} 1... Nf6 {[%clk 0:02:21.7]} 2. Nc3 {[%clk 0:01:26.5]}
2... d5 {[%clk 0:02:22.4]} 3. Bg5 {[%clk 0:01:27.8]} 3... Nbd7 {[%clk
0:02:23.5]} 4. Qd3 {[%clk 0:01:27.4]} 4... e6 {[%clk 0:02:23.6]} 5. Nf3 {[%clk
0:01:21.2]} 5... Be7 {[%clk 0:02:24.5]} 6. O-O-O {[%clk 0:01:21.2]} 6... O-O
{[%clk 0:02:23.4]} 7. Bxf6 {[%clk 0:01:21.6]} 7... Nxf6 {[%clk 0:02:23.7]} 8. e4
{[%clk 0:01:23.5]} 8... c5 {[%clk 0:02:15.6]} 9. exd5 {[%clk 0:01:21.6]} 9...
exd5 {[%clk 0:02:15.4]} 10. dxc5 {[%clk 0:01:21.6]} 10... Be6 {[%clk 0:02:16.3]}
11. Qd4 {[%clk 0:01:01.7]} 11... Rc8 {[%clk 0:02:15.5]} 12. b4 {[%clk
0:00:59.1]} 12... a5 {[%clk 0:02:15.7]} 13. a3 {[%clk 0:00:59.5]} 13... axb4
{[%clk 0:02:17]} 14. axb4 {[%clk 0:01:01.4]} 14... Ng4 {[%clk 0:02:05]} 15. Nxd5
{[%clk 0:00:52.9]} 15... Bxd5 {[%clk 0:01:33.1]} 16. Qxg4 {[%clk 0:00:52.2]}
16... Ra8 {[%clk 0:01:34.2]} 17. Bc4 {[%clk 0:00:45.9]} 17... Bxf3 {[%clk
0:01:02.6]} 18. Qxf3 {[%clk 0:00:38.2]} 18... Bg5+ {[%clk 0:01:01.4]} 19. Kb2
{[%clk 0:00:36.3]} 19... Bf6+ {[%clk 0:00:59.7]} 20. c3 {[%clk 0:00:35]} 20...
Qc7 {[%clk 0:00:59.3]} 21. Rd6 {[%clk 0:00:34.4]} 21... Be5 {[%clk 0:00:40]} 22.
Rd5 {[%clk 0:00:30.1]} 22... Bf6 {[%clk 0:00:39.6]} 23. Rd6 {[%clk 0:00:29.2]}
23... Be5 {[%clk 0:00:39.2]} 24. Rd5 {[%clk 0:00:30.1]} 24... Ra4 {[%clk
0:00:40.9]} 25. Kc2 {[%clk 0:00:25.3]} 25... Ra3 {[%clk 0:00:29.3]} 26. Bb3
{[%clk 0:00:22.7]} 26... Bf6 {[%clk 0:00:28.8]} 27. Rhd1 {[%clk 0:00:22.6]}
27... Qxh2 {[%clk 0:00:25.5]} 28. Rd7 {[%clk 0:00:22.6]} 28... Qe5 {[%clk
0:00:22.4]} 29. Rxb7 {[%clk 0:00:17.5]} 29... Rfa8 {[%clk 0:00:18.9]} 30. Rdd7
{[%clk 0:00:16.8]} 30... Kh8 {[%clk 0:00:18.6]} 31. Rxf7 {[%clk 0:00:16]} 31...
Qe1 {[%clk 0:00:18.2]} 32. Rxf6 {[%clk 0:00:13.8]} 32... Ra2+ {[%clk 0:00:19.6]}
33. Bxa2 {[%clk 0:00:13.5]} 33... Rxa2+ {[%clk 0:00:21.3]} 34. Kb3 {[%clk
0:00:14.2]} 34... Qb1+ {[%clk 0:00:19.8]} 35. Kc4 {[%clk 0:00:15.2]} 35... Qf1+
{[%clk 0:00:20.6]} 36. Qd3 {[%clk 0:00:14.8]} 36... Qxd3+ {[%clk 0:00:21.8]} 37.
Kxd3 {[%clk 0:00:15]} 37... gxf6 {[%clk 0:00:23.7]} 38. c6 {[%clk 0:00:16.4]}
1-0

[Event "*** Titled Tuesday 3|2 Blitz"]
[Site "Chess.com"]
[Date "2014.12.30"]
[Round "1"]
[White "UnPolarizing"]
[Black "Hafez_Bakr"]
[Result "1-0"]
[WhiteElo "2213"]
[BlackElo "1760"]
[TimeControl "180+2"]
[EndTime "11:08:34 PST"]
[Termination "UnPolarizing won by resignation"]

1. e4 {[%clk 0:03:00]} 1... c5 {[%clk 0:02:58.2]} 2. d4 {[%clk 0:02:59.8]} 2...
d6 {[%clk 0:03:00.1]} 3. c3 {[%clk 0:03:01.7]} 3... cxd4 {[%clk 0:03:01]} 4. Nf3
{[%clk 0:03:01.2]} 4... dxc3 {[%clk 0:03:01.3]} 5. Nxc3 {[%clk 0:03:01.4]} 5...
Nf6 {[%clk 0:03:02.2]} 6. e5 {[%clk 0:02:52.8]} 6... Ng4 {[%clk 0:03:00.8]} 7.
exd6 {[%clk 0:02:47.1]} 7... Qxd6 {[%clk 0:03:01]} 8. Qxd6 {[%clk 0:02:44.6]}
8... exd6 {[%clk 0:03:01.6]} 9. Nd5 {[%clk 0:02:45.8]} 9... Kd7 {[%clk
0:02:50.8]} 10. Bb5+ {[%clk 0:02:30.8]} 10... Nc6 {[%clk 0:02:51.1]} 11. O-O
{[%clk 0:02:28.4]} 11... f6 {[%clk 0:02:49.9]} 12. Nd4 {[%clk 0:02:24]} 12...
Ne5 {[%clk 0:02:49.4]} 13. f4 {[%clk 0:02:22.6]} 13... Ng6 {[%clk 0:02:41.1]}
14. Be3 {[%clk 0:02:14.7]} 14... Be7 {[%clk 0:02:39.5]} 15. Rac1 {[%clk
0:02:10.3]} 15... a6 {[%clk 0:02:28.3]} 16. Ba4 {[%clk 0:02:05.3]} 16... Rb8
{[%clk 0:02:20.1]} 17. Nb6+ {[%clk 0:01:57.8]} 17... Ke8 {[%clk 0:02:10]} 18.
Rfe1 {[%clk 0:01:54.8]} 18... Kf7 {[%clk 0:02:07.6]} 19. Bb3+ {[%clk 0:01:39.3]}
19... Kf8 {[%clk 0:02:07.8]} 20. Nxc8 {[%clk 0:01:27.6]} 20... Rxc8 {[%clk
0:02:07.7]} 21. Be6 {[%clk 0:01:28.7]} 21... Rb8 {[%clk 0:02:03.1]} 22. Nf5
{[%clk 0:01:25.3]} 22... Nb4 {[%clk 0:01:50.5]} 23. Rc7 {[%clk 0:01:23.8]} 23...
Nd3 {[%clk 0:01:47.6]} 24. Rd1 {[%clk 0:01:22.2]} 24... Nc5 {[%clk 0:01:40.5]}
25. Bd5 {[%clk 0:01:14.1]} 25... b6 {[%clk 0:01:35.4]} 26. Bxc5 {[%clk
0:01:08.3]} 26... dxc5 {[%clk 0:01:32.7]} 27. Re1 {[%clk 0:01:08.4]} 27... Re8
{[%clk 0:01:28.3]} 28. g3 {[%clk 0:01:00.9]} 28... h5 {[%clk 0:01:20.3]} 29. h4
{[%clk 0:00:58.9]} 29... c4 {[%clk 0:01:18.6]} 30. Kg2 {[%clk 0:00:51.9]} 30...
Rh7 {[%clk 0:01:13.1]} 31. Kf3 {[%clk 0:00:46.3]} 31... b5 {[%clk 0:01:13.5]}
32. Re4 {[%clk 0:00:40.2]} 32... Rd8 {[%clk 0:01:07.2]} 33. Bc6 {[%clk
0:00:37.8]} 33... Rd3+ {[%clk 0:01:05]} 34. Ke2 {[%clk 0:00:36.9]} 34... Nxf4+
{[%clk 0:00:38.3]} 35. gxf4 {[%clk 0:00:34.8]} 35... g6 {[%clk 0:00:38.6]} 36.
Nxe7 {[%clk 0:00:32.2]} 36... Rf7 {[%clk 0:00:37.5]} 37. Nxg6+ {[%clk
0:00:30.6]} 37... Kg7 {[%clk 0:00:38.2]} 38. Rxf7+ {[%clk 0:00:28.5]} 38... Kxf7
{[%clk 0:00:38.7]} 39. Be8+ {[%clk 0:00:30.1]} 39... Kg7 {[%clk 0:00:37.1]} 40.
Re7+ {[%clk 0:00:29.4]} 40... Kg8 {[%clk 0:00:37.2]} 41. Bf7+ {[%clk 0:00:27]}
41... Kg7 {[%clk 0:00:37.3]} 42. Bxc4+ {[%clk 0:00:24.6]} 42... Kxg6 {[%clk
0:00:36.4]} 43. Bxd3+ {[%clk 0:00:25.9]} 43... f5 {[%clk 0:00:37.4]} 44. Re6+
{[%clk 0:00:24.6]} 44... Kf7 {[%clk 0:00:38]} 45. Rxa6 {[%clk 0:00:26]} 45... b4
{[%clk 0:00:38.6]} 46. Bxf5 {[%clk 0:00:24.7]} 1-0

[Event "*** Titled Tuesday 3|2 Blitz"]
[Site "Chess.com"]
[Date "2014.12.30"]
[Round "1"]
[White "steinitz_attack"]
[Black "ViennaRocket"]
[Result "1/2-1/2"]
[WhiteElo "1791"]
[BlackElo "2220"]
[TimeControl "180+2"]
[EndTime "11:08:56 PST"]
[Termination "Game drawn by agreement"]

1. Nf3 {[%clk 0:02:59.5]} 1... g6 {[%clk 0:02:57.4]} 2. g3 {[%clk 0:03:00.3]}
2... Bg7 {[%clk 0:02:58.6]} 3. Bg2 {[%clk 0:03:01.9]} 3... f5 {[%clk 0:02:59.9]}
4. d4 {[%clk 0:03:00.9]} 4... Nf6 {[%clk 0:03:01.2]} 5. c4 {[%clk 0:03:00.3]}
5... O-O {[%clk 0:03:02.3]} 6. Nc3 {[%clk 0:03:01.8]} 6... d6 {[%clk 0:03:03.5]}
7. Bg5 {[%clk 0:03:02.8]} 7... h6 {[%clk 0:02:59.1]} 8. Bxf6 {[%clk 0:03:01.4]}
8... Bxf6 {[%clk 0:03:00.3]} 9. O-O {[%clk 0:03:03]} 9... c6 {[%clk 0:02:57.4]}
10. e4 {[%clk 0:03:03.6]} 10... e6 {[%clk 0:02:57.8]} 11. e5 {[%clk 0:03:02.1]}
11... dxe5 {[%clk 0:02:57.8]} 12. dxe5 {[%clk 0:03:00.9]} 12... Qxd1 {[%clk
0:02:54.1]} 13. Raxd1 {[%clk 0:02:56.1]} 13... Be7 {[%clk 0:02:55.6]} 14. Nh4
{[%clk 0:02:49.1]} 14... Kf7 {[%clk 0:02:53.8]} 15. f4 {[%clk 0:02:45.9]} 15...
Na6 {[%clk 0:02:51.3]} 16. a3 {[%clk 0:02:45]} 16... Nc5 {[%clk 0:02:40.3]} 17.
b4 {[%clk 0:02:28.1]} 17... Nd7 {[%clk 0:02:39.1]} 18. Rd2 {[%clk 0:02:17.2]}
18... a5 {[%clk 0:02:38.3]} 19. Rfd1 {[%clk 0:02:15.1]} 19... axb4 {[%clk
0:02:34.4]} 20. axb4 {[%clk 0:02:15.9]} 20... Nb6 {[%clk 0:02:31.8]} 21. c5
{[%clk 0:02:09.1]} 21... Nd5 {[%clk 0:02:29.5]} 22. Nxd5 {[%clk 0:02:04.8]}
22... cxd5 {[%clk 0:02:30.7]} 23. Nf3 {[%clk 0:02:05.8]} 23... Bd7 {[%clk
0:02:30.1]} 24. Nd4 {[%clk 0:02:05.9]} 24... Ra4 {[%clk 0:02:28.6]} 25. Rb1
{[%clk 0:02:05.2]} 25... Rfa8 {[%clk 0:02:28.9]} 26. Bf1 {[%clk 0:01:56.4]}
26... Ra1 {[%clk 0:02:29]} 27. Rdb2 {[%clk 0:01:56.7]} 27... Rxb1 {[%clk
0:02:29]} 28. Rxb1 {[%clk 0:01:57.7]} 28... Ra2 {[%clk 0:02:30.5]} 29. Nb5
{[%clk 0:01:49.5]} 29... g5 {[%clk 0:02:08.3]} 30. Nd6+ {[%clk 0:01:49.3]} 30...
Bxd6 {[%clk 0:02:08.6]} 31. exd6 {[%clk 0:01:50.3]} 31... Rc2 {[%clk 0:02:03.5]}
32. Rb3 {[%clk 0:01:36.3]} 32... Rc1 {[%clk 0:01:59]} 33. Kf2 {[%clk 0:01:29.3]}
33... Kf6 {[%clk 0:01:45.8]} 34. Be2 {[%clk 0:01:16.6]} 34... Rc2 {[%clk
0:01:42.1]} 35. Ke3 {[%clk 0:01:11.8]} 35... d4+ {[%clk 0:01:42.3]} 36. Kd3
{[%clk 0:01:12.7]} 36... Ra2 {[%clk 0:01:38.3]} 37. b5 {[%clk 0:01:01]} 37... e5
{[%clk 0:01:37.3]} 38. fxe5+ {[%clk 0:01:00.3]} 38... Kxe5 {[%clk 0:01:38.1]}
39. Bf3 {[%clk 0:00:58.4]} 39... Be6 {[%clk 0:01:32]} 40. Bxb7 {[%clk
0:00:53.6]} 40... Rxh2 {[%clk 0:01:19.9]} 41. c6 {[%clk 0:00:45.7]} 41... Kxd6
{[%clk 0:01:20.3]} 42. Rb4 {[%clk 0:00:44.8]} 42... Kc5 {[%clk 0:01:15.4]} 43.
Rxd4 {[%clk 0:00:43.9]} 43... Kxb5 {[%clk 0:01:15.5]} 44. Rd6 {[%clk 0:00:44.8]}
44... Bc4+ {[%clk 0:01:14.9]} 45. Kc3 {[%clk 0:00:42.2]} 45... Rh1 {[%clk
0:00:47.2]} 46. c7 {[%clk 0:00:33.5]} 46... Be6 {[%clk 0:00:48.2]} 47. Rxe6
{[%clk 0:00:34.1]} 47... Rc1+ {[%clk 0:00:48.7]} 48. Kd2 {[%clk 0:00:31.8]}
48... Rxc7 {[%clk 0:00:50]} 49. Bg2 {[%clk 0:00:27.2]} 49... h5 {[%clk
0:00:46.7]} 50. Rh6 {[%clk 0:00:26.4]} 50... f4 {[%clk 0:00:40.8]} 1/2-1/2

[Event "*** Titled Tuesday 3|2 Blitz"]
[Site "Chess.com"]
[Date "2014.12.30"]
[Round "1"]
[White "FlySooHigh"]
[Black "Zhani-Z"]
[Result "1-0"]
[WhiteElo "2363"]
[BlackElo "2030"]
[TimeControl "180+2"]
[EndTime "11:09:17 PST"]
[Termination "FlySooHigh won on time"]

1. e4 {[%clk 0:02:57.8]} 1... e5 {[%clk 0:02:56.2]} 2. Bc4 {[%clk 0:02:57.5]}
2... Nc6 {[%clk 0:02:47.9]} 3. Nf3 {[%clk 0:02:57.7]} 3... Bc5 {[%clk
0:02:40.9]} 4. c3 {[%clk 0:02:58.3]} 4... Nf6 {[%clk 0:02:41]} 5. d3 {[%clk
0:02:58.6]} 5... d6 {[%clk 0:02:42]} 6. Bb3 {[%clk 0:02:58.7]} 6... Bb6 {[%clk
0:02:42.8]} 7. O-O {[%clk 0:02:59]} 7... Ne7 {[%clk 0:02:39.2]} 8. Nbd2 {[%clk
0:02:58.8]} 8... c6 {[%clk 0:02:34.1]} 9. h3 {[%clk 0:02:58.1]} 9... Ng6 {[%clk
0:02:34.4]} 10. Re1 {[%clk 0:02:58.3]} 10... O-O {[%clk 0:02:35]} 11. Nf1 {[%clk
0:02:58.8]} 11... h6 {[%clk 0:02:28.7]} 12. Ng3 {[%clk 0:02:53.2]} 12... Re8
{[%clk 0:02:29.6]} 13. Nh2 {[%clk 0:02:46.7]} 13... Be6 {[%clk 0:02:20.2]} 14.
Nf5 {[%clk 0:02:38.6]} 14... Qd7 {[%clk 0:02:12.5]} 15. Qf3 {[%clk 0:02:30]}
15... Bxf5 {[%clk 0:02:12.6]} 16. Qxf5 {[%clk 0:02:27]} 16... Qxf5 {[%clk
0:02:12.1]} 17. exf5 {[%clk 0:02:28.9]} 17... Ne7 {[%clk 0:02:12.8]} 18. g4
{[%clk 0:02:28.3]} 18... Ned5 {[%clk 0:02:13]} 19. Kg2 {[%clk 0:02:21.5]} 19...
e4 {[%clk 0:02:02.4]} 20. dxe4 {[%clk 0:02:18.2]} 20... Nxe4 {[%clk 0:02:02.8]}
21. Bxd5 {[%clk 0:02:13.9]} 21... cxd5 {[%clk 0:02:03.6]} 22. Be3 {[%clk
0:02:15.4]} 22... Kf8 {[%clk 0:01:37.9]} 23. Rad1 {[%clk 0:02:15.4]} 23... Nf6
{[%clk 0:01:32.4]} 24. Bxb6 {[%clk 0:02:15]} 24... axb6 {[%clk 0:01:33.4]} 25.
a3 {[%clk 0:02:16.6]} 25... Re5 {[%clk 0:01:30.3]} 26. Nf3 {[%clk 0:02:16.5]}
26... Re4 {[%clk 0:01:29.7]} 27. Nd2 {[%clk 0:01:57.2]} 27... Re5 {[%clk
0:01:28.5]} 28. f4 {[%clk 0:01:57]} 28... Rxe1 {[%clk 0:01:27.1]} 29. Rxe1
{[%clk 0:01:58.9]} 29... Ra5 {[%clk 0:01:25.7]} 30. Re2 {[%clk 0:01:49.8]} 30...
Ra4 {[%clk 0:01:05.3]} 31. Kf3 {[%clk 0:01:45.1]} 31... d4 {[%clk 0:01:06.4]}
32. c4 {[%clk 0:01:39.1]} 32... d5 {[%clk 0:01:07.4]} 33. cxd5 {[%clk 0:01:32]}
33... Nxd5 {[%clk 0:01:07.7]} 34. Re5 {[%clk 0:01:33.9]} 34... Nc7 {[%clk
0:00:47.7]} 35. Re4 {[%clk 0:01:21.2]} 35... Nb5 {[%clk 0:00:47.4]} 36. Ke2
{[%clk 0:01:17.4]} 36... Nd6 {[%clk 0:00:45.9]} 37. Re5 {[%clk 0:01:13.8]} 37...
d3+ {[%clk 0:00:46.3]} 38. Ke3 {[%clk 0:01:06.6]} 38... Nc4+ {[%clk 0:00:30.5]}
39. Nxc4 {[%clk 0:01:07.1]} 39... Rxc4 {[%clk 0:00:31.7]} 40. Rb5 {[%clk
0:01:01.8]} 40... d2 {[%clk 0:00:27.3]} 41. Kxd2 {[%clk 0:01:01.3]} 41... Rxf4
{[%clk 0:00:27.2]} 42. Rxb6 {[%clk 0:01:02.9]} 42... Rf3 {[%clk 0:00:27]} 43.
Rxb7 {[%clk 0:01:03.6]} 43... Rxh3 {[%clk 0:00:27.4]} 44. a4 {[%clk 0:01:05.3]}
44... h5 {[%clk 0:00:28.5]} 45. gxh5 {[%clk 0:01:03.9]} 45... Rxh5 {[%clk
0:00:29.3]} 46. a5 {[%clk 0:01:05]} 46... Rxf5 {[%clk 0:00:29.5]} 47. b4 {[%clk
0:01:06.6]} 47... g5 {[%clk 0:00:26.2]} 48. a6 {[%clk 0:01:07.4]} 48... Rf2+
{[%clk 0:00:27]} 49. Ke3 {[%clk 0:01:06.4]} 49... Ra2 {[%clk 0:00:28]} 50. a7
{[%clk 0:01:05.5]} 50... Kg7 {[%clk 0:00:29.5]} 51. b5 {[%clk 0:01:06.7]} 51...
Kg6 {[%clk 0:00:28.8]} 52. Rb6+ {[%clk 0:01:05.1]} 52... Kf5 {[%clk 0:00:26.7]}
53. Ra6 {[%clk 0:01:07]} 1-0